fUSD/lending_fUSD_20250820
["ID","MTS","AMOUNT","RATE_DAILY","PERIOD"]
[380334638,1755691864649,-900.0,0.00013699,2]
[380334639,1755691864659,-900.0,0.00013699,2]
[380334640,1755691864670,-900.0,0.00013699,2]
[380334641,1755691864680,-900.0,0.00013699,2]
[380334642,1755691864690,-900.0,0.00013699,2]
[380334643,1755691864700,-900.0,0.00013699,2]
[380334644,1755691864709,-900.0,0.00013699,2]
[380334645,1755691864720,-900.0,0.00013699,2]
[380334646,1755691864731,-900.0,0.00013699,2]
[380334647,1755691864744,-900.0,0.00013699,2]
[380334648,1755691864753,-900.0,0.00013699,2]
[380334649,1755691864763,-900.0,0.00013699,2]
[380334650,1755691864774,-900.0,0.00013699,2]
[380334651,1755691864784,-900.0,0.00013699,2]
[380334652,1755691864794,-900.0,0.00013699,2]
[380334653,1755691864803,-900.0,0.00013699,2]
[380334654,1755691864815,-200.0,0.00013699,2]
[380334655,1755691864825,-151.0,0.00013699,2]
[380334656,1755691864835,-151.0,0.00013699,2]
[380334657,1755691864845,-151.0,0.00013699,2]
[380334658,1755691864855,-151.0,0.00013699,2]
[380334659,1755691864865,-284.885957,0.00013699,2]
[380334660,1755691864875,-1000.0,0.00013699,2]
[380334661,1755691864885,-1000.0,0.00013699,2]
[380334662,1755691864895,-1000.0,0.00013699,2]
[380334663,1755691864905,-1000.0,0.00013699,2]
[380334664,1755691864915,-1730.511004,0.00013699,2]
[380334665,1755691864925,-1730.511004,0.00013699,2]
[380334666,1755691864934,-1730.511004,0.00013699,2]
[380334667,1755691864944,-1730.511004,0.00013699,2]
[380334668,1755691864954,-1730.511004,0.00013699,2]
[380334669,1755691864964,-1730.511004,0.00013699,2]
[380334670,1755691864974,-1730.511004,0.00013699,2]
[380334671,1755691864984,-1730.511004,0.00013699,2]
[380334672,1755691864995,-1730.511004,0.00013699,2]
[380334673,1755691865005,-1730.511004,0.00013699,2]
[380334674,1755691865015,-1730.511004,0.00013699,2]
[380334675,1755691865025,-1730.511004,0.00013699,2]
[380334676,1755691865035,-1730.511004,0.00013699,2]
[380334677,1755691865045,-1730.511004,0.00013699,2]
[380334678,1755691865055,-1730.511004,0.00013699,2]
[380334679,1755691865065,-1730.511004,0.00013699,2]
[380334680,1755691865075,-1730.511004,0.00013699,2]
[380334681,1755691865086,-1730.511004,0.00013699,2]
[380334682,1755691865095,-1730.511004,0.00013699,2]
[380334683,1755691865106,-1730.511,0.00013699,2]
[380334684,1755691865116,-407.604915,0.00013699,2]
[380334685,1755691865126,-407.604915,0.00013699,2]
[380334686,1755691865136,-407.604915,0.00013699,2]
[380334687,1755691865148,-407.604915,0.00013699,2]
[380334688,1755691865159,-407.604915,0.00013699,2]
[380334689,1755691865168,-407.604915,0.00013699,2]
[380334690,1755691865178,-407.604915,0.00013699,2]
[380334691,1755691865188,-407.604915,0.00013699,2]
[380334692,1755691865199,-407.604915,0.00013699,2]
[380334693,1755691865208,-407.604915,0.00013699,2]
[380334694,1755691865218,-407.604915,0.00013699,2]
[380334695,1755691865228,-407.604915,0.00013699,2]
[380334696,1755691865238,-407.604915,0.00013699,2]
[380334697,1755691865248,-407.604915,0.00013699,2]
[380334698,1755691865258,-407.604915,0.00013699,2]
[380334699,1755691865267,-407.604915,0.00013699,2]
[380334700,1755691865277,-407.604915,0.00013699,2]
[380334701,1755691865287,-407.604915,0.00013699,2]
[380334702,1755691865297,-407.604915,0.00013699,2]
[380334703,1755691865307,-407.60491,0.00013699,2]
[380334704,1755691865317,-200.0,0.00013699,2]
[380334705,1755691865327,-200.0,0.00013699,2]
[380334706,1755691865337,-200.0,0.00013699,2]
[380334707,1755691865347,-200.0,0.00013699,2]
[380334708,1755691865356,-200.0,0.00013699,2]
[380334709,1755691865366,-200.0,0.00013699,2]
[380334710,1755691865376,-200.0,0.00013699,2]
[380334711,1755691865386,-200.0,0.00013699,2]
[380334712,1755691865396,-200.0,0.00013699,2]
[380334713,1755691865406,-587.58,0.00013699,2]
[380334714,1755691865416,-200.0,0.00013699,2]
[380334715,1755691865426,-200.0,0.00013699,2]
[380334716,1755691865436,-200.0,0.00013699,2]
[380334717,1755691865446,-200.0,0.00013699,2]
[380334718,1755691865456,-200.0,0.00013699,2]
[380334719,1755691865466,-200.0,0.00013699,2]
[380334720,1755691865476,-200.0,0.00013699,2]
[380334721,1755691865486,-200.0,0.00013699,2]
[380334722,1755691865496,-200.0,0.00013699,2]
[380334723,1755691865506,-200.0,0.00013699,2]
[380334724,1755691865517,-200.0,0.00013699,2]
[380334725,1755691865527,-200.0,0.00013699,2]
[380334726,1755691865536,-200.0,0.00013699,2]
[380334727,1755691865546,-200.0,0.00013699,2]
[380334728,1755691865556,-200.0,0.00013699,2]
[380334729,1755691865566,-200.0,0.00013699,2]
[380334730,1755691865576,-200.0,0.00013699,2]
[380334731,1755691865586,-200.0,0.00013699,2]
[380334732,1755691865596,-200.0,0.00013699,2]
[380334733,1755691865606,-200.0,0.00013699,2]
[380334734,1755691865616,-200.0,0.00013699,2]
[380334735,1755691865627,-200.0,0.00013699,2]
[380334736,1755691865637,-200.0,0.00013699,2]
[380334737,1755691865649,-200.0,0.00013699,2]
[380334738,1755691865659,-226.297844,0.00013699,2]
[380334739,1755691865669,-151.0,0.00013699,2]
[380334740,1755691865680,-151.0,0.00013699,2]
[380334741,1755691865689,-151.0,0.00013699,2]
[380334742,1755691865699,-151.0,0.00013699,2]
[380334743,1755691865708,-151.0,0.00013699,2]
[380334744,1755691865718,-151.0,0.00013699,2]
[380334745,1755691865729,-151.0,0.00013699,2]
[380334746,1755691865743,-151.0,0.00013699,2]
[380334747,1755691865752,-151.0,0.00013699,2]
[380334748,1755691865762,-151.0,0.00013699,2]
[380334749,1755691865771,-151.0,0.00013699,2]
[380334750,1755691865782,-151.0,0.00013699,2]
[380334751,1755691865792,-151.0,0.00013699,2]
[380334752,1755691865802,-151.0,0.00013699,2]
[380334753,1755691865813,-151.0,0.00013699,2]
[380334754,1755691865822,-151.0,0.00013699,2]
[380334755,1755691865832,-151.0,0.00013699,2]
[380334756,1755691865841,-151.0,0.00013699,2]
[380334757,1755691865851,-154.830047,0.00013699,2]
[380334758,1755691865861,-297.817257,0.00013699,2]
[380334759,1755691865871,-297.817257,0.00013699,2]
[380334760,1755691865881,-297.817257,0.00013699,2]
[380334761,1755691865891,-297.817257,0.00013699,2]
[380334762,1755691865905,-297.817257,0.00013699,2]
[380334763,1755691865914,-297.817257,0.00013699,2]
[380334764,1755691865924,-297.817257,0.00013699,2]
[380334765,1755691865935,-297.817257,0.00013699,2]
[380334766,1755691865945,-297.817257,0.00013699,2]
[380334767,1755691865955,-297.817257,0.00013699,2]
[380334768,1755691865965,-297.817257,0.00013699,2]
[380334769,1755691865975,-297.817257,0.00013699,2]
[380334770,1755691865985,-297.817257,0.00013699,2]
[380334771,1755691865995,-297.817257,0.00013699,2]
[380334772,1755691866005,-297.817257,0.00013699,2]
[380334773,1755691866015,-297.817257,0.00013699,2]
[380334774,1755691866025,-297.817257,0.00013699,2]
[380334775,1755691866036,-297.817257,0.00013699,2]
[380334776,1755691866046,-297.817257,0.00013699,2]
[380334777,1755691866057,-297.817264,0.00013699,2]
[380334778,1755691866067,-689.144136,0.00013699,2]
[380334779,1755691866076,-689.144136,0.00013699,2]
[380334780,1755691866086,-689.144136,0.00013699,2]
[380334781,1755691866096,-689.144136,0.00013699,2]
[380334782,1755691866105,-689.144136,0.00013699,2]
[380334783,1755691866115,-689.144136,0.00013699,2]
[380334784,1755691866124,-689.144136,0.00013699,2]
[380334785,1755691866134,-689.144136,0.00013699,2]
[380334786,1755691866146,-689.144136,0.00013699,2]
[380334787,1755691866156,-689.144136,0.00013699,2]
[380334788,1755691866167,-689.144136,0.00013699,2]
[380334789,1755691866176,-689.144136,0.00013699,2]
[380334790,1755691866187,-689.144136,0.00013699,2]
[380334791,1755691866197,-689.144136,0.00013699,2]
[380334792,1755691866208,-689.144136,0.00013699,2]
[380334793,1755691866218,-689.144136,0.00013699,2]
[380334794,1755691866230,-689.144136,0.00013699,2]
[380334795,1755691866241,-689.144136,0.00013699,2]
[380334796,1755691866252,-689.144136,0.00013699,2]
[380334797,1755691866263,-689.144129,0.00013699,2]
[380334798,1755691866273,-2729.37239614,0.000137,2]
[380334799,1755691866284,-2729.37239614,0.000137,2]
[380334800,1755691866295,-2729.37239614,0.000137,2]
[380334801,1755691866306,-2729.37239614,0.000137,2]
[380334802,1755691866317,-2729.37239614,0.000137,2]
[380334803,1755691866329,-2729.37239614,0.000137,2]
[380334804,1755691866339,-2729.37239614,0.000137,2]
[380334805,1755691866349,-2729.37239614,0.000137,2]
[380334806,1755691866359,-2729.37239614,0.000137,2]
[380334807,1755691866368,-2729.37239614,0.000137,2]
[380334808,1755691866379,-2729.37239614,0.000137,2]
[380334809,1755691866388,-2729.37239614,0.000137,2]
[380334810,1755691866400,-2729.37239614,0.000137,2]
[380334811,1755691866409,-2729.37239614,0.000137,2]
[380334812,1755691866419,-2729.37239614,0.000137,2]
[380334813,1755691866429,-2729.37239614,0.000137,2]
[380334814,1755691866439,-2729.37239614,0.000137,2]
[380334815,1755691866449,-2729.37239614,0.000137,2]
[380334816,1755691866460,-2729.37239614,0.000137,2]
[380334817,1755691866470,-2729.37,0.000137,2]
[380334818,1755691866480,-1762.9025084,0.000137,2]
[380334819,1755691866490,-1762.9025084,0.000137,2]
[380334820,1755691866500,-1762.9025084,0.000137,2]
[380334821,1755691866509,-1762.9025084,0.000137,2]
[380334822,1755691866519,-1762.9025084,0.000137,2]
[380334823,1755691866529,-1762.9025084,0.000137,2]
[380334824,1755691866538,-1762.9025084,0.000137,2]
[380334825,1755691866548,-1762.9025084,0.000137,2]
[380334826,1755691866558,-1762.9025084,0.000137,2]
[380334827,1755691866567,-1762.9025084,0.000137,2]
[380334828,1755691866577,-1762.9025084,0.000137,2]
[380334829,1755691866586,-1762.9025084,0.000137,2]
[380334830,1755691866596,-1762.9025084,0.000137,2]
[380334831,1755691866605,-1762.9025084,0.000137,2]
[380334832,1755691866615,-1762.9025084,0.000137,2]
[380334833,1755691866625,-1762.9025084,0.000137,2]
[380334834,1755691866634,-1762.9025084,0.000137,2]
[380334835,1755691866645,-1762.9025084,0.000137,2]
[380334836,1755691866654,-1762.9025084,0.000137,2]
[380334837,1755691866664,-1762.9,0.000137,2]
[380334838,1755691866673,-517.30066227,0.000137,2]
[380334839,1755691866683,-517.30066227,0.000137,2]
[380334840,1755691866692,-517.30066227,0.000137,2]
[380334841,1755691866702,-517.30066227,0.000137,2]
[380334842,1755691866711,-517.30066227,0.000137,2]
[380334843,1755691866721,-517.30066227,0.000137,2]
[380334844,1755691866878,-517.30066227,0.000137,2]
[380334845,1755691866888,-517.30066227,0.000137,2]
[380334846,1755691866897,-517.30066227,0.000137,2]
[380334847,1755691866906,-517.30066227,0.000137,2]
[380334848,1755691866916,-517.30066227,0.000137,2]
[380334849,1755691866926,-517.30066227,0.000137,2]
[380334850,1755691866936,-517.30066227,0.000137,2]
[380334851,1755691866945,-517.30066227,0.000137,2]
[380334852,1755691866954,-517.30066227,0.000137,2]
[380334853,1755691866964,-517.30066227,0.000137,2]
[380334854,1755691866973,-517.30066227,0.000137,2]
[380334855,1755691866983,-517.30066227,0.000137,2]
[380334856,1755691866993,-517.30066227,0.000137,2]
[380334857,1755691867002,-517.3,0.000137,2]
[380334858,1755691867012,-10652.42,0.000137,2]
[380334859,1755691867021,-10652.42,0.000137,2]
[380334860,1755691867031,-314.76,0.0001373,2]
[380334861,1755691867041,-500.0,0.00013739,2]
[380334862,1755691867052,-470.0,0.00013751,2]
[380334863,1755691867062,-234.32,0.00013855,2]
[380334864,1755691867072,-2000.0,0.00013899,2]
[380334865,1755691867082,-446.0,0.00013942,2]
[380334866,1755691867091,-666.0,0.00013999,2]
[380334867,1755691867101,-173203.38,0.00014,2]
[380334868,1755691867110,-500.0,0.00014013,2]
[380334869,1755691867119,-1000.0,0.00014206,2]
[380334870,1755691867129,-446.0,0.00014216,2]
[380334871,1755691867138,-500.0,0.00014287,2]
[380334872,1755691867147,-587.58,0.00014384,2]
[380334873,1755691867157,-8932.51,0.000144,2]
[380334874,1755691867167,-446.0,0.0001449,2]
[380334875,1755691867176,-217.90931501,0.00014556,2]
[380334876,1755691867186,-309.29654756,0.00014556,2]
[380334877,1755691867195,-500.0,0.00014561,2]
[380334878,1755691867205,-509.22989307,0.00014567,2]
[380334879,1755691867214,-1152.0,0.00014568,2]
[380334880,1755691867224,-500.0,0.00014677,2]
[380334881,1755691867234,-1000.0,0.00014687,2]
[380334882,1755691867244,-4040.23714109,0.00014748,2]
[380334883,1755691867254,-446.0,0.00014764,2]
[380334884,1755691867264,-500.0,0.00014835,2]
[380334885,1755691867274,-150.0,0.0001485,2]
[380334886,1755691867285,-2000.0,0.00014899,2]
[380334887,1755691867295,-221.78247594,0.000149,2]
[380334888,1755691867305,-221.78247592,0.000149,2]
[380334889,1755691867315,-221.78247592,0.000149,2]
[380334890,1755691867324,-248.4,0.00014927,2]
[380334891,1755691867334,-250.0,0.00015,2]
[380334892,1755691867344,-132964.4018189,0.00015,2]
[380334893,1755691867353,-446.0,0.00015038,2]
[380334894,1755691867363,-300.0,0.00015068,2]
[380334895,1755691867372,-500.0,0.00015068,2]
[380334896,1755691867381,-587.58,0.00015068,2]
[380334897,1755691867391,-298.1558981,0.00015109,2]
[380334898,1755691867401,-234.32,0.00015114,2]
[380334899,1755691867410,-446.0,0.00015312,2]
[380334900,1755691867419,-258.81180815,0.00015375,2]
[380334901,1755691867429,-2234.0,0.00015412,2]
[380334902,1755691867439,-21500.0,0.00015412,2]
[380334903,1755691867448,-566.6548885,0.00015506,2]
[380334904,1755691867457,-150.0,0.00015516,2]
[380334905,1755691867467,-150.0,0.00015516,2]
[380334906,1755691867475,-150.0,0.00015516,2]
[380334907,1755691867485,-446.0,0.00015586,2]
[380334908,1755691867494,-225.7813272,0.0001559,2]
[380334909,1755691867504,-3000.0,0.00015601,2]
[380334910,1755691867514,-3000.0,0.00015601,2]
[380334911,1755691867523,-2700.0,0.00015601,2]
[380334912,1755691867532,-5888.0,0.00015674,2]
[380334913,1755691867541,-195.05991967,0.00015682,13]
[380334914,1755691867550,-424.31958871,0.00015699,2]
[380334915,1755691867559,-173203.38,0.000157,2]
[380334916,1755691867569,-587.58,0.00015753,2]
[380334917,1755691867578,-841.0,0.00015755,2]
[380334918,1755691867587,-151.0,0.00015848,2]
[380334919,1755691867597,-5484.0,0.00015854,2]
[380334920,1755691867606,-151.0,0.00015857,2]
[380334921,1755691867616,-151.0,0.00015857,2]
[380334922,1755691867626,-446.0,0.0001586,2]
[380334923,1755691867635,-151.0,0.00015861,2]
[380334924,1755691867644,-157.05963202,0.00015862,7]
[380334925,1755691867655,-151.0,0.00015863,2]
[380334926,1755691867664,-2588.93,0.0001589,2]
[380334927,1755691867673,-841.0,0.00015891,2]
[380334928,1755691867683,-5888.0,0.00015892,2]
[380334929,1755691867692,-320.74051982,0.00015925,2]
[380334930,1755691867702,-1085.0,0.00015928,2]
[380334931,1755691867711,-500.0,0.00015993,2]
[380334932,1755691867720,-5484.0,0.00015993,2]
[380334933,1755691867729,-200.0,0.00016,2]
[380334934,1755691867743,-5484.0,0.00016006,2]
[380334935,1755691867752,-841.0,0.00016022,2]
[380334936,1755691867762,-1613.0,0.00016025,2]
[380334937,1755691867771,-150.0,0.0001603,2]
[380334938,1755691867782,-5888.0,0.0001605,2]
[380334939,1755691867792,-2223.0,0.00016088,2]
[380334940,1755691867801,-841.0,0.0001609,2]
[380334941,1755691867810,-8932.51,0.000161,2]
[380334942,1755691867820,-6121.05,0.00016116,2]
[380334943,1755691867830,-446.0,0.00016133,2]
[380334944,1755691867840,-841.0,0.00016146,2]
[380334945,1755691867849,-841.0,0.00016161,2]
[380334946,1755691867858,-150.0,0.000162,2]
[380334947,1755691867868,-165.38518678,0.000162,2]
[380334948,1755691867877,-150.0,0.000162,2]
[380334949,1755691867886,-150.0,0.000162,2]
[380334950,1755691867895,-150.0,0.000162,2]
[380334951,1755691867905,-150.0,0.000162,2]
[380334952,1755691867914,-150.0,0.000162,2]
[380334953,1755691867923,-150.0,0.000162,2]
[380334954,1755691867933,-150.56440366,0.000162,2]
[380334955,1755691867942,-150.0,0.000162,2]
[380334956,1755691867952,-150.55682607,0.000162,2]
[380334957,1755691867961,-150.0,0.000162,2]
[380334958,1755691867970,-150.0,0.000162,2]
[380334959,1755691867980,-150.0,0.000162,2]
[380334960,1755691867989,-150.0,0.000162,2]
[380334961,1755691867998,-166.0,0.00016274,3]
[380334962,1755691868008,-150.0,0.00016338,2]
[380334963,1755691868018,-509.22989307,0.000164,2]
[380334964,1755691868028,-277.50321532,0.000164,2]
[380334965,1755691868038,-446.0,0.00016407,2]
[380334966,1755691868047,-1050.2,0.00016438,2]
[380334967,1755691868057,-300.0,0.00016438,4]
[380334968,1755691868067,-500.0,0.00016438,2]
[380334969,1755691868076,-300.0,0.00016438,2]
[380334970,1755691868085,-666.0,0.00016438,3]
[380334971,1755691868095,-587.58,0.00016438,2]
[380334972,1755691868105,-300.0,0.00016438,3]
[380334973,1755691868114,-300.0,0.00016438,3]
[380334974,1755691868124,-300.0,0.00016438,3]
[380334975,1755691868134,-300.0,0.00016438,3]
[380334976,1755691868143,-300.0,0.00016438,3]
[380334977,1755691868156,-600.0,0.00016438,2]
[380334978,1755691868166,-600.0,0.00016438,2]
[380334979,1755691868176,-600.0,0.00016438,2]
[380334980,1755691868186,-600.0,0.00016438,2]
[380334981,1755691868196,-600.0,0.00016438,2]
[380334982,1755691868206,-600.0,0.00016438,2]
[380334983,1755691868215,-600.0,0.00016438,2]
[380334984,1755691868226,-600.0,0.00016438,2]
[380334985,1755691868236,-600.0,0.00016438,2]
[380334986,1755691868245,-600.0,0.00016438,2]
[380334987,1755691868255,-600.0,0.00016438,2]
[380334988,1755691868264,-150.0,0.00016457,2]
[380334989,1755691868273,-150.0,0.00016477,2]
[380334990,1755691868283,-150.0,0.00016615,2]
[380334991,1755691868292,-150.0,0.0001665,2]
[380334992,1755691868301,-150.0,0.0001665,2]
[380334993,1755691868311,-446.0,0.00016681,2]
[380334994,1755691868320,-500.0,0.00016712,2]
[380334995,1755691868330,-1050.2,0.00016712,2]
[380334996,1755691868339,-181.31,0.00016712,2]
[380334997,1755691868348,-150.0,0.00016714,2]
[380334998,1755691868357,-150.0,0.00016754,2]
[380334999,1755691868366,-1085.0,0.00016766,2]
[380335000,1755691868375,-5888.0,0.00016786,2]
[380335001,1755691868385,-150.0,0.000168,2]
[380335002,1755691868394,-150.0,0.000168,2]
[380335003,1755691868408,-150.0,0.000168,2]
[380335004,1755691868417,-150.0,0.000168,2]
[380335005,1755691868427,-150.0,0.00016892,2]
[380335006,1755691868436,-5888.0,0.00016929,2]
[380335007,1755691868446,-446.0,0.00016955,2]
[380335008,1755691868455,-3000.0,0.00016971,2]
[380335009,1755691868465,-3000.0,0.00016971,2]
[380335010,1755691868475,-2700.0,0.00016971,2]
[380335011,1755691868485,-150.0,0.00016971,2]
[380335012,1755691868494,-500.0,0.00016986,2]
[380335013,1755691868504,-1050.2,0.00016986,2]
[380335014,1755691868513,-281.0,0.00016996,2]
[380335015,1755691868523,-300.0,0.00017,2]
[380335016,1755691868533,-150.0,0.00017031,2]
[380335017,1755691868542,-150.0,0.000171,2]
[380335018,1755691868552,-150.0,0.000171,2]
[380335019,1755691868561,-150.0,0.000171,2]
[380335020,1755691868571,-216.0,0.0001713,2]
[380335021,1755691868580,-336.0,0.00017167,2]
[380335022,1755691868590,-150.0,0.00017169,2]
[380335023,1755691868600,-157.05963202,0.00017183,7]
[380335024,1755691868609,-185.0,0.0001722,2]
[380335025,1755691868618,-150.0,0.00017229,2]
[380335026,1755691868627,-465.59684506,0.00017229,2]
[380335027,1755691868636,-500.0,0.0001726,2]
[380335028,1755691868645,-1050.2,0.0001726,2]
[380335029,1755691868658,-5888.0,0.00017264,2]
[380335030,1755691868668,-332.60791905,0.00017294,2]
[380335031,1755691868677,-300.0,0.00017299,2]
[380335032,1755691868686,-300.0,0.00017299,2]
[380335033,1755691868695,-300.0,0.00017299,2]
[380335034,1755691868704,-300.0,0.00017299,2]
[380335035,1755691868714,-300.0,0.00017299,2]
[380335036,1755691868723,-300.0,0.00017299,2]
[380335037,1755691868733,-300.0,0.00017299,2]
[380335038,1755691868746,-173203.38,0.000173,2]
[380335039,1755691868755,-1000.0,0.000173,2]
[380335040,1755691868765,-150.0,0.00017308,2]
[380335041,1755691868774,-150.0,0.000174,2]
[380335042,1755691868785,-150.0,0.000174,2]
[380335043,1755691868795,-150.0,0.000174,2]
[380335044,1755691868804,-150.0,0.000174,2]
[380335045,1755691868813,-150.0,0.00017446,2]
[380335046,1755691868824,-150.0,0.00017486,2]
[380335047,1755691868834,-500.0,0.00017491,2]
[380335048,1755691868843,-1000.0,0.00017501,2]
[380335049,1755691868852,-5888.0,0.00017504,2]
[380335050,1755691868862,-500.0,0.00017534,2]
[380335051,1755691868871,-1050.2,0.00017534,2]
[380335052,1755691868881,-150.0,0.0001755,2]
[380335053,1755691868891,-150.0,0.0001755,2]
[380335054,1755691868903,-150.0,0.00017585,2]
[380335055,1755691868913,-209.57858523,0.00017586,2]
[380335056,1755691868923,-8932.51,0.000176,2]
[380335057,1755691868933,-1085.0,0.00017604,2]
[380335058,1755691868944,-216.0,0.0001761,2]
[380335059,1755691868954,-1209.0,0.00017628,2]
[380335060,1755691868964,-5800.0,0.00017699,2]
[380335061,1755691868973,-2244.58,0.000177,2]
[380335062,1755691868983,-867.58876441,0.000177,2]
[380335063,1755691871028,-566.606062,0.00011,2]
[380335064,1755691871038,-151.0,0.00011,2]
[380335065,1755691871049,-566.606062,0.00011,2]
[380335066,1755691871059,-492.72138571,0.00011,2]
[380335067,1755691871073,-73.88467629,0.00011,2]
[380335068,1755691871084,-151.0,0.00011,2]
[380335069,1755691871096,-566.606062,0.00011,2]
[380335070,1755691871107,-151.0,0.00011,2]
[380335071,1755691871118,-151.0,0.00011,2]
[380335072,1755691871134,-566.606062,0.00011,2]
[380335073,1755691871145,-2406.067769,0.00011,2]
[380335074,1755691871156,-566.606062,0.00011,2]
[380335075,1755691871166,-1090.295859,0.00011,2]
[380335076,1755691871179,-334.7171787,0.00011,2]
[380335077,1755691871223,6798.03,0.00024658,120]
[380335078,1755691871236,-981.0547313,0.00011,2]
[380335079,1755691871246,-1294.3452687,0.00013699,2]
[380335080,1755691871279,-566.606062,0.00011,2]
[380335081,1755691871288,-2406.067769,0.00011,2]
[380335082,1755691871299,-813.0827083,0.00013699,2]
[380335083,1755691871309,-2107.427977,0.00013699,2]
[380335084,1755691871318,-220.0969909,0.00013699,2]
[380335085,1755691871329,-547.2,0.00013699,2]
[380335086,1755691871347,-1340.1309861,0.00013699,2]
[380335087,1755691871356,-2107.427977,0.00013699,2]
[380335088,1755691871366,-2107.427977,0.00013699,2]
[380335089,1755691871375,-14961.69224526,0.000177,2]
[380335090,1755691871999,-151.0,0.00011,2]
[380335091,1755691872013,-575.85080326,0.00011,2]
[380335092,1755691872024,-471.5363957,0.00011,2]
[380335093,1755691872039,-1358.68057004,0.00011,2]
[380335094,1755691872048,-566.606062,0.00011,2]
[380335095,1755691872057,-151.0,0.00011,2]
[380335096,1755691872067,-2174.02482188,0.00011,2]
[380335097,1755691872078,-232.04294712,0.00011,2]
[380335098,1755691872088,-566.606062,0.00011,2]
[380335099,1755691872098,-255.347727,0.00011,2]
[380335100,1755691872108,-2406.067769,0.00011,2]
[380335101,1755691872118,-566.606062,0.00011,2]
[380335102,1755691872127,-2406.067769,0.00011,2]
[380335103,1755691872137,-566.606062,0.00011,2]
[380335104,1755691872147,-159.0573897,0.00011,2]
[380335105,1755691872160,-253.51035655,0.00011,2]
[380335106,1755691872216,-307.98061606,0.00011,2]
[380335107,1755691872380,-5.11509739,0.00011,2]
[380335108,1755691872389,-621.71145281,0.00011,2]
[380335109,1755691872414,-458.47014067,0.00011,2]
[380335110,1755691872426,-383.5086327,0.00011,2]
[380335111,1755691872438,-942.37754282,0.00011,2]
[380335112,1755691872448,-2406.067769,0.00011,2]
[380335113,1755691872457,-722.20352871,0.00011,2]
[380335114,1755691882622,-1683.86424029,0.00011,2]
[380335115,1755691882648,-151.0,0.00011,2]
[380335116,1755691882673,-2406.067769,0.00011,2]
[380335117,1755691882696,-2406.067769,0.00011,2]
[380335118,1755691882719,-2406.067769,0.00011,2]
[380335119,1755691882747,-151.0,0.00011,2]
[380335120,1755691882769,-2406.067769,0.00011,2]
[380335121,1755691882791,-151.0,0.00011,2]
[380335122,1755691882814,-2406.067769,0.00011,2]
[380335123,1755691882841,-151.0,0.00011,2]
[380335124,1755691882864,-2406.067769,0.00011,2]
[380335125,1755691882886,-151.0,0.00011,2]
[380335126,1755691882909,-151.48907,0.00011,2]
[380335127,1755691882931,-2406.067769,0.00011,2]
[380335128,1755691882953,-2406.067769,0.00011,2]
[380335129,1755691882976,-2406.067769,0.00011,2]
[380335130,1755691883000,-2406.067777,0.00011,2]
[380335131,1755691883022,-198.721395,0.00011,2]
[380335132,1755691883044,-150.0,0.00011,2]
[380335133,1755691883066,-150.0,0.00011274,2]
[380335134,1755691883088,-200.0,0.00011548,2]
[380335135,1755691883110,-915.317,0.00012516,2]
[380335136,1755691883132,-2107.427977,0.00013699,2]
[380335137,1755691883156,-2107.427977,0.00013699,2]